bitfinex/quotes_SOLUSD_20260120
["timestamp","ask_amount","ask_price","bid_price","bid_amount"]
[1768936449338,17.52627504,127.09,127.04,3.09150658]
[1768936449715,17.52627504,127.09,127.05,3.09150658]
[1768936450424,6.83339461,127.11,127.06,3.09150658]
[1768936450813,14.70106449,127.11,127.07,3.09150658]
[1768936451122,17.66766681,127.11,127.07,3.06150661]
[1768936451835,31.81805557,127.12,127.07,3.06150661]
[1768936452042,25.12621745,127.13,127.08,6.69123304]
[1768936452247,25.12621745,127.13,127.06,7.86968915]
[1768936452449,14.55745049,127.13,127.08,6.69123304]
[1768936452735,7.86621745,127.13,127.08,6.69123304]
[1768936452940,7.86621745,127.13,127.08,9.78273962]
[1768936453145,2.96660232,127.12,127.08,3.09150658]
[1768936453313,17.52405281,127.13,127.08,3.09150658]
[1768936453513,17.52405281,127.13,127.08,9.78273962]
[1768936453735,17.52405281,127.13,127.08,3.09150658]
[1768936454044,10.83281977,127.13,127.09,3.09150658]
[1768936456727,17.52405281,127.13,127.09,3.09150658]
[1768936458540,8.00763644,127.14,127.11,2.92005383]
[1768936458842,28.10961741,127.15,127.11,2.92005383]
[1768936459043,10.86961741,127.15,127.11,2.92005383]
[1768936459243,10.8692312,127.16,127.11,6.69123304]
[1768936459425,10.8692312,127.16,127.12,6.69123304]
[1768936461133,10.8692312,127.16,127.12,9.61128687]
[1768936461317,7.86448507,127.16,127.13,2.92005383]
[1768936461518,7.86448507,127.16,127.13,2.89005383]
[1768936461737,28.2506409,127.17,127.13,2.89005383]
[1768936461937,0.14216157,127.17,127.13,6.69123304]
[1768936462460,28.10791269,127.18,127.13,6.69123304]
[1768936462742,0.14216157,127.17,127.13,6.69123304]
[1768936463143,28.10791723,127.18,127.14,6.69123304]
[1768936463639,28.10791723,127.18,127.14,9.61128687]
[1768936464061,28.10791723,127.18,127.14,2.92005383]
[1768936465056,0.14216157,127.17,127.14,2.92005383]
[1768936466439,7.8631711,127.18,127.14,2.92005383]
[1768936466640,10.86702403,127.19,127.15,2.92005383]
[1768936466955,10.86702403,127.19,127.15,2.89005383]
[1768936467758,10.86672102,127.2,127.15,6.69123304]
[1768936468834,10.86672102,127.2,127.16,2.92005383]
[1768936469040,3.00474613,127.18,127.13,6.69123304]
[1768936469547,10.8679133,127.18,127.13,6.69123304]
[1768936469736,17.5585321,127.19,127.13,6.69123304]
[1768936470345,10.86729906,127.19,127.13,6.69123304]
[1768936470954,10.86729906,127.19,127.14,2.92005383]
[1768936471468,10.86729906,127.19,127.14,9.61128687]
[1768936471866,10.86729906,127.19,127.14,2.92005383]
[1768936472661,10.86729906,127.19,127.15,2.92005383]
[1768936473045,5.82075973,127.2,127.15,2.92005383]
[1768936473362,10.86660263,127.2,127.16,2.92005383]
[1768936474042,13.54045466,127.2,127.16,2.92005383]
[1768936474746,2.67385203,127.19,127.16,2.89005383]
[1768936474939,33.19454271,127.2,127.16,2.89005383]
[1768936477969,10.86660263,127.2,127.16,2.89005383]
[1768936482539,7.86126326,127.21,127.19,2.92005383]
[1768936482965,7.86126326,127.21,127.18,2.92005383]
[1768936487575,0.2,127.23,127.21,2.90381881]
[1768936487774,11.06027043,127.26,127.22,5.54673836]
[1768936487949,11.06027043,127.26,127.22,2.67291955]
[1768936488271,8.05820213,127.26,127.22,2.67291955]
[1768936488662,0.2,127.26,127.22,2.67291955]
[1768936489271,8.05795255,127.26,127.22,2.67291955]
[1768936489659,8.05795255,127.26,127.23,2.90381881]
[1768936500892,11.06002085,127.26,127.23,2.90381881]
[1768936501569,8.05795255,127.26,127.23,2.90381881]
[1768936502494,3.0020683,127.25,127.21,2.90381881]
[1768936502691,8.05795255,127.26,127.22,2.90381881]
[1768936502995,0.2,127.26,127.23,2.90381881]
[1768936503294,11.06004821,127.26,127.23,2.90381881]
[1768936505005,0.2,127.26,127.23,2.90381881]
[1768936505284,0.2,127.31,127.26,10.761693]
[1768936505487,0.2,127.31,127.29,2.90381881]
[1768936506072,0.2,127.31,127.27,2.90381881]
[1768936506073,11.05693951,127.31,127.27,2.90381881]
[1768936506780,3.0020683,127.3,127.25,2.90381881]
[1768936506967,10.72779076,127.31,127.25,2.90381881]
[1768936506968,5.67498785,127.29,127.25,2.90381881]
[1768936507275,13.53186823,127.28,127.24,2.90381881]
[1768936507480,5.67498785,127.27,127.23,2.90381881]
[1768936507677,3.0020683,127.26,127.23,2.90381881]
[1768936508875,5.67498785,127.26,127.23,2.90381881]
[1768936509084,5.67498785,127.25,127.2,2.90381881]
[1768936509390,10.53109726,127.26,127.21,2.90381881]
[1768936509592,13.53316556,127.26,127.21,2.90381881]
[1768936510300,2.67291955,127.25,127.21,2.90381881]
[1768936510676,5.67498785,127.25,127.21,2.90381881]
[1768936511270,13.53372486,127.25,127.21,2.90381881]
[1768936512281,2.67291955,127.24,127.21,2.90381881]
[1768936512671,13.53372486,127.25,127.21,2.90381881]
[1768936514793,13.53359273,127.25,127.21,2.90381881]
[1768936516276,5.67498785,127.25,127.21,2.90381881]
[1768936516492,13.53359056,127.25,127.21,2.90381881]
[1768936518295,5.5279747,127.24,127.21,2.90381881]
[1768936518479,5.5279747,127.23,127.18,3.03473966]
[1768936518678,2.67291955,127.22,127.18,3.03473966]
[1768936518868,5.5279747,127.22,127.18,3.03473966]
[1768936519075,2.67291955,127.21,127.18,3.03473966]
[1768936519479,2.67291955,127.2,127.17,3.03473966]
[1768936520078,13.38920947,127.21,127.17,3.03473966]
[1768936523089,10.53415432,127.21,127.17,3.03473966]
[1768936524104,2.85505515,127.28,127.21,2.27824139]
[1768936524408,5.5279747,127.26,127.22,2.27824139]
[1768936524977,5.5279747,127.25,127.21,2.27759464]
[1768936525177,13.38703045,127.25,127.21,2.27759464]
[1768936526386,2.85505515,127.24,127.21,2.27759464]
[1768936526701,5.5279747,127.23,127.18,2.27695533]
[1768936526900,5.5279747,127.23,127.19,2.27695533]
[1768936527386,2.85505515,127.23,127.19,4.94987488]
[1768936527789,2.67291955,127.24,127.2,2.27632335]
[1768936527990,5.5279747,127.26,127.22,2.27632335]
[1768936528182,5.5279747,127.28,127.23,4.94861819]
[1768936528897,2.85505515,127.27,127.23,4.94861819]
[1768936529102,10.71241225,127.27,127.23,2.27569864]
[1768936529605,2.85505515,127.26,127.23,2.27569864]
[1768936529804,2.85505515,127.26,127.22,4.94800065]
[1768936531013,13.3853318,127.27,127.23,2.27953019]
[1768936532111,10.71241225,127.27,127.23,2.27953019]
[1768936532411,2.85505515,127.27,127.24,2.67291955]
[1768936532727,7.85707505,127.28,127.24,4.95463603]
[1768936532728,2.85505515,127.28,127.24,4.95463603]
[1768936533299,10.7118081,127.28,127.24,4.95463603]
[1768936533513,2.85505515,127.3,127.26,4.95679721]
[1768936534808,0.248606,127.31,127.28,4.95893357]
[1768936536388,0.248606,127.31,127.29,2.67291955]
[1768936537013,0.248606,127.31,127.29,6.67008669]
[1768936539616,3.10366115,127.31,127.28,6.67008669]
[1768936541021,2.85505515,127.3,127.26,6.67008669]
[1768936541314,2.85505515,127.28,127.24,8.97038369]
[1768936541722,2.85505515,127.28,127.24,6.67008669]
[1768936543122,2.85505515,127.27,127.24,6.67008669]
[1768936543320,2.85505515,127.27,127.23,8.97038369]
[1768936546406,2.85505515,127.27,127.23,16.83015684]
[1768936546606,2.85505515,127.27,127.24,8.98355712]
[1768936546802,2.824913,127.28,127.25,8.98355712]
[1768936547102,2.824913,127.29,127.25,8.98355712]
[1768936547311,9.49499969,127.29,127.25,2.31347043]
[1768936549014,9.49986844,127.29,127.25,2.31347043]
[1768936549522,17.35599536,127.29,127.25,2.31347043]
[1768936550028,2.824913,127.28,127.24,6.67495544]
[1768936550217,2.824913,127.28,127.24,8.99548883]
[1768936550520,2.824913,127.27,127.23,6.67495544]
[1768936550727,2.824913,127.27,127.23,8.99548883]
[1768936551424,2.824913,127.27,127.23,16.85521907]
[1768936551632,2.824913,127.27,127.23,8.99548883]
[1768936552934,2.824913,127.26,127.22,8.99889979]
[1768936554116,2.824913,127.26,127.23,2.3272774]
[1768936557139,2.824913,127.27,127.23,9.00223284]
[1768936557339,10.68117206,127.29,127.25,9.00709022]
[1768936557715,17.3561275,127.29,127.25,2.33213478]
[1768936558223,2.824913,127.28,127.25,2.33213478]
[1768936559021,2.824913,127.28,127.24,5.0052361]
[1768936559340,10.68163357,127.28,127.24,5.0052361]
[1768936559530,2.824913,127.27,127.24,5.0052361]
[1768936561334,2.824913,127.26,127.22,5.00831023]
[1768936562133,2.824913,127.26,127.23,2.66995534]
[1768936562444,2.824913,127.26,127.23,5.00982086]
[1768936563029,10.52668434,127.28,127.23,5.00982086]
[1768936563227,2.824913,127.27,127.23,5.00982086]
[1768936563617,2.824913,127.26,127.22,2.66995534]
[1768936564022,2.824913,127.26,127.22,5.01279027]
[1768936564237,2.824913,127.27,127.23,5.01279027]
[1768936565125,2.824913,127.27,127.23,12.87256696]
[1768936565751,2.824913,127.27,127.23,5.01279027]
[1768936566119,2.824913,127.27,127.23,2.66995534]
[1768936566315,2.824913,127.27,127.22,12.87580945]
[1768936567145,2.824913,127.27,127.23,12.87683174]
[1768936567325,2.824913,127.28,127.24,2.34716237]
[1768936567675,2.824913,127.28,127.23,10.52966937]
[1768936567839,2.824913,127.28,127.21,19.65212508]
[1768936567840,2.66995534,127.26,127.21,5.49768504]
[1768936568137,2.66995534,127.27,127.22,10.68810067]
[1768936568341,10.52674027,127.28,127.23,2.8277297]
[1768936568540,2.66995534,127.28,127.23,5.49768504]
[1768936568750,10.52669412,127.28,127.23,2.8277297]
[1768936568941,2.66995534,127.28,127.24,2.8277297]
[1768936569423,10.52670081,127.28,127.24,2.8277297]
[1768936569944,2.824913,127.27,127.24,2.8277297]
[1768936570126,2.824913,127.27,127.23,2.8277297]
[1768936572446,5.49486834,127.29,127.24,5.49768504]
[1768936572648,2.824913,127.29,127.25,2.8277297]
[1768936573148,2.824913,127.29,127.26,2.8277297]
[1768936573333,2.824913,127.3,127.27,2.8277297]
[1768936573539,2.824913,127.3,127.26,2.8277297]
[1768936573741,2.824913,127.29,127.26,2.8277297]
[1768936574255,2.824913,127.27,127.24,2.8277297]
[1768936574948,10.68223801,127.27,127.23,3.13819368]
[1768936575174,2.824913,127.27,127.23,3.13819368]
[1768936579036,2.76491301,127.27,127.24,3.13819368]
[1768936579232,7.85698482,127.28,127.24,3.13819368]
[1768936579437,10.52633782,127.29,127.24,3.13819368]
[1768936579645,7.85638248,127.29,127.24,3.13819368]
[1768936579844,10.52633782,127.29,127.24,3.13819368]
[1768936580364,7.85576434,127.3,127.26,3.13819368]
[1768936580579,3.26904724,127.31,127.27,5.50814809]
[1768936580750,0.248606,127.31,127.29,2.66995534]
[1768936581235,0.248606,127.31,127.27,7.8572451]
[1768936581435,0.248606,127.31,127.28,2.66995534]
[1768936582349,3.26904724,127.31,127.27,10.52720044]
[1768936582560,3.26904724,127.31,127.27,2.66995534]
[1768936582750,3.26904724,127.31,127.26,5.80814902]
[1768936583654,3.02044124,127.3,127.26,5.80814902]
[1768936583850,5.69039658,127.3,127.26,3.13819368]
[1768936584152,3.02044124,127.29,127.25,5.80814902]
[1768936584739,5.69039658,127.29,127.24,5.80814902]
[1768936584939,3.02044124,127.28,127.24,3.13819368]
[1768936585142,5.69039658,127.28,127.24,3.13819368]
[1768936585642,5.63039659,127.28,127.24,3.13819368]
[1768936585844,0.14216157,127.3,127.25,5.80814902]
[1768936586170,0.248606,127.31,127.27,5.80814902]
[1768936586367,5.5400254,127.31,127.27,5.80814902]
[1768936587242,7.8526304,127.35,127.31,3.13819368]
[1768936587462,5.29194864,127.34,127.31,2.66995534]
[1768936587655,8.31238988,127.34,127.3,5.80814902]
[1768936587855,3.02044124,127.34,127.3,5.80814902]
[1768936588256,3.02044124,127.33,127.3,5.80814902]
[1768936589642,3.02044124,127.33,127.29,5.80814902]
[1768936590145,3.02044124,127.33,127.3,2.66995534]
[1768936590346,3.02044124,127.34,127.3,5.80814902]
[1768936590867,3.02044124,127.35,127.32,5.80814902]
[1768936591242,3.02044124,127.35,127.32,3.13819368]
[1768936591443,3.02044124,127.35,127.31,5.80814902]
[1768936595160,3.02044124,127.34,127.31,2.66995534]
[1768936596461,3.02044124,127.34,127.32,2.66995534]
[1768936596656,3.22044124,127.36,127.33,2.66995534]
[1768936597165,3.22044124,127.36,127.32,5.80814902]
[1768936597480,3.22044124,127.36,127.33,2.66995534]
[1768936599951,0.2,127.36,127.34,5.80814902]
[1768936600150,0.2,127.36,127.35,2.66995534]
[1768936600352,3.22044124,127.39,127.36,3.13819368]
[1768936600549,5.69039658,127.37,127.33,3.13819368]
[1768936600951,3.02044124,127.37,127.33,5.80814902]
[1768936601678,3.02044124,127.37,127.34,2.66995534]
[1768936602477,3.02044124,127.38,127.35,5.80814902]
[1768936602661,3.22044124,127.39,127.36,2.66995534]
[1768936604187,3.22044124,127.39,127.35,5.80814902]
[1768936605565,3.22044124,127.39,127.36,2.66995534]
[1768936608170,3.22044124,127.39,127.36,5.66522957]
[1768936608374,0.2,127.39,127.36,5.66522957]
[1768936608974,0.2,127.39,127.36,5.66015519]
[1768936609987,0.2,127.39,127.36,2.99527423]
[1768936610206,3.0600587,127.39,127.36,2.99527423]
[1768936610569,0.2,127.39,127.37,2.99527423]
[1768936612082,0.2,127.4,127.38,2.99527423]
[1768936612283,0.2,127.4,127.35,7.85205417]
[1768936612284,3.0600587,127.4,127.37,2.99527423]
[1768936612883,2.8600587,127.39,127.36,2.99527423]
[1768936613076,2.8600587,127.39,127.35,2.99527423]
[1768936613281,2.8600587,127.38,127.34,2.99527423]
[1768936613676,2.8600587,127.38,127.34,10.84824066]
[1768936614260,2.8600587,127.38,127.34,2.99527423]
[1768936616785,2.8600587,127.39,127.35,2.99527423]
[1768936617087,2.8600587,127.39,127.36,2.99527423]
[1768936618903,2.8600587,127.39,127.35,2.99527423]
[1768936618904,2.8600587,127.38,127.35,2.99527423]
[1768936620229,2.8600587,127.37,127.33,5.66015519]
[1768936620390,10.71027254,127.39,127.34,2.99527423]
[1768936620590,2.8600587,127.39,127.36,2.99527423]
[1768936621193,8.04942415,127.4,127.36,2.99527423]
[1768936621401,0.2,127.4,127.36,2.99527423]
[1768936621593,0.2,127.4,127.37,2.99527423]
[1768936621772,3.0600587,127.4,127.37,2.99527423]
[1768936622198,5.72493966,127.4,127.36,2.99527423]
[1768936622394,2.8600587,127.39,127.36,2.99527423]
[1768936623704,2.8600587,127.38,127.34,2.99527423]
[1768936624195,2.8600587,127.37,127.34,2.99527423]
[1768936625287,2.8600587,127.37,127.33,2.99527423]
[1768936625881,2.8600587,127.36,127.31,30.71467416]
[1768936626193,2.8600587,127.36,127.32,5.66015519]
[1768936626380,2.8600587,127.36,127.32,13.51433092]
[1768936627084,2.8600587,127.36,127.33,2.99527423]
[1768936627603,2.8600587,127.37,127.33,2.99527423]
[1768936629103,2.8600587,127.37,127.33,5.66015519]
[1768936629291,2.8600587,127.37,127.34,2.99527423]
[1768936630248,3.5077587,127.39,127.35,2.99527423]
[1768936630526,3.5077587,127.39,127.36,5.66015519]
[1768936631216,3.5077587,127.39,127.36,2.99527423]
[1768936633792,3.5077587,127.39,127.36,5.66015519]
[1768936634896,0.2,127.4,127.38,5.71564316]
[1768936636732,3.29275233,127.4,127.35,30.76779628]
[1768936637029,3.29275233,127.4,127.36,3.0507622]
[1768936637233,3.29275233,127.4,127.36,5.71564316]
[1768936638706,0.2,127.4,127.37,5.71564316]
[1768936639528,3.29275233,127.4,127.37,5.71564316]
[1768936640946,0.2,127.4,127.38,2.66488096]
[1768936641133,0.2,127.4,127.38,5.71564316]
[1768936641340,0.2,127.4,127.38,3.0507622]
[1768936641549,0.2,127.4,127.37,5.71564316]
[1768936642846,3.29275233,127.4,127.37,5.71564316]
[1768936643846,3.29275233,127.4,127.36,2.66488096]
[1768936647749,3.29275233,127.4,127.37,3.0507622]
[1768936647953,3.29275233,127.4,127.37,5.71564316]
[1768936648534,0.2,127.4,127.38,2.66488096]
[1768936648735,3.29275233,127.41,127.36,7.85161963]
[1768936648736,0.2,127.41,127.39,5.71564316]
[1768936649241,10.58911639,127.42,127.4,5.71564316]
[1768936649552,10.58911639,127.42,127.41,2.66488096]
[1768936649739,0.2,127.43,127.41,5.71564316]
[1768936650346,0.2,127.43,127.4,3.41308101]
[1768936650644,3.29275233,127.43,127.39,8.59757329]
[1768936650851,3.29275233,127.43,127.41,2.66488096]
[1768936651555,0.1,127.45,127.41,2.66488096]
[1768936651556,3.19275233,127.45,127.42,2.66488096]
[1768936652161,3.09275233,127.47,127.44,2.66488096]
[1768936652337,3.09275233,127.47,127.43,3.2123598]
[1768936652850,3.09275233,127.47,127.42,2.66488096]
[1768936653043,3.09275233,127.46,127.41,20.3123598]
[1768936653239,3.09275233,127.46,127.42,2.66488096]
[1768936653436,3.09275233,127.45,127.41,20.3123598]
[1768936653736,3.09275233,127.45,127.41,19.86488096]
[1768936654135,3.09275233,127.45,127.41,2.66488096]
[1768936654854,3.09275233,127.44,127.4,2.66488096]
[1768936655159,3.09275233,127.44,127.39,2.66488096]
[1768936655527,3.09275233,127.43,127.38,2.66488096]
[1768936655727,3.09275233,127.43,127.38,10.96174632]
[1768936656354,3.09275233,127.43,127.39,2.66488096]
[1768936656530,3.09275233,127.43,127.39,3.11125488]
[1768936656730,3.09275233,127.43,127.4,2.66488096]
[1768936656958,3.09275233,127.44,127.41,2.66488096]
[1768936658265,3.09275233,127.44,127.4,10.96042819]
[1768936659143,3.09275233,127.44,127.4,3.11125488]
[1768936659332,3.09275233,127.44,127.4,2.66488096]
[1768936662347,3.09275233,127.44,127.41,2.66488096]
[1768936662943,3.09275233,127.44,127.4,2.66488096]
[1768936663449,3.09275233,127.43,127.39,2.66488096]
[1768936664263,3.03220891,127.42,127.38,10.95909723]
[1768936665063,3.03220891,127.42,127.39,2.66488096]
[1768936665855,3.03220891,127.42,127.39,10.51467394]
[1768936666170,3.01953631,127.44,127.41,0.44223135]
[1768936666372,3.01953631,127.45,127.41,3.10711231]
[1768936666669,3.01953631,127.45,127.41,2.66488096]
[1768936667059,3.01953631,127.45,127.4,0.44223135]
[1768936667060,3.01953631,127.43,127.39,2.66488096]
[1768936667372,3.01953631,127.43,127.39,10.51477581]
[1768936667867,3.01953631,127.43,127.39,2.66488096]
[1768936669367,3.01953631,127.43,127.39,3.1061482]
[1768936669570,3.01953631,127.43,127.39,10.95596997]
[1768936670966,3.01953631,127.43,127.39,10.95458631]
[1768936672372,3.01953631,127.43,127.4,2.6634973]
[1768936673051,3.01953631,127.43,127.4,10.95281949]
[1768936673252,3.01953631,127.45,127.41,2.6634973]
[1768936676752,3.01953631,127.44,127.39,8.28878359]
[1768936676957,2.95953632,127.44,127.4,2.6634973]
[1768936677664,2.95953632,127.44,127.39,10.95228089]
[1768936679165,3.01953631,127.43,127.38,11.01200016]
[1768936679661,3.01953631,127.43,127.38,11.51200016]
[1768936680393,3.01953631,127.43,127.39,2.6634973]
[1768936680893,2.6634973,127.44,127.4,3.16150206]
[1768936680894,3.01953631,127.44,127.4,3.16150206]
[1768936681598,3.01953631,127.44,127.4,2.6634973]
[1768936682095,3.01953631,127.43,127.38,2.6634973]
[1768936682397,3.01953631,127.42,127.37,28.21185619]
[1768936682597,3.01953631,127.42,127.38,11.01140158]
[1768936683092,3.01953631,127.42,127.38,3.16096691]
[1768936683299,3.01953631,127.41,127.37,2.6634973]
[1768936683598,3.01953631,127.41,127.36,3.16071128]
[1768936684119,3.01953631,127.41,127.36,11.01246394]
[1768936684488,3.01953631,127.41,127.37,0.5]
[1768936684792,3.01953631,127.38,127.33,0.99696128]
[1768936685001,3.01953631,127.38,127.34,0.99696128]
[1768936685379,3.01953631,127.38,127.34,3.66045858]
[1768936685782,3.01953631,127.38,127.34,11.51332088]
[1768936686697,3.01953631,127.38,127.34,3.66045858]
[1768936686999,3.01953631,127.37,127.33,2.6634973]
[1768936687188,3.01953631,127.37,127.32,28.71355479]
[1768936687702,3.01953631,127.37,127.33,3.65971777]
[1768936687999,3.01953631,127.39,127.35,3.65971777]
[1768936688796,3.01953631,127.39,127.36,2.6634973]
[1768936690003,3.01953631,127.39,127.35,3.65971777]
[1768936691189,3.01953631,127.38,127.35,2.6634973]
[1768936691380,2.95953632,127.37,127.34,2.6634973]
[1768936693202,2.85952515,127.37,127.34,2.6634973]
[1768936695710,2.99108207,127.35,127.31,1.1533014]
[1768936695898,2.99108207,127.35,127.31,3.8167987]
[1768936696209,2.89107151,127.35,127.31,3.8167987]
[1768936696504,2.83107152,127.35,127.31,11.67137532]
[1768936697012,2.77107153,127.35,127.32,2.6634973]
[1768936697404,2.66105883,127.35,127.32,2.6634973]
[1768936698210,2.55104966,127.35,127.32,2.6634973]
[1768936698704,5.21454696,127.35,127.31,2.6634973]
[1768936698909,2.6634973,127.33,127.29,9.44822553]
[1768936699125,2.6634973,127.33,127.29,12.11172283]
[1768936699409,2.6634973,127.34,127.29,12.11172283]
[1768936700009,2.99108207,127.33,127.29,12.11172283]
[1768936700396,5.65457937,127.31,127.27,4.25551217]
[1768936700590,5.65457937,127.31,127.27,1.59201487]
[1768936700909,2.99108207,127.29,127.26,2.8634973]
[1768936703094,2.99108207,127.29,127.26,0.2]
[1768936703315,2.99108207,127.29,127.26,2.8634973]
[1768936706921,2.99108207,127.29,127.26,0.2]
[1768936707222,2.99108207,127.29,127.26,2.8634973]
[1768936707619,2.99108207,127.28,127.26,0.2]
[1768936707813,5.65457937,127.28,127.26,0.2]
[1768936708019,2.99108207,127.27,127.26,0.2]
[1768936710129,2.99108207,127.27,127.23,20.0834973]
[1768936710312,2.99108207,127.27,127.23,27.94317679]
[1768936710713,2.99108207,127.27,127.23,29.73790203]
[1768936711221,2.99108207,127.27,127.24,2.6634973]
[1768936712211,2.99108207,127.27,127.25,2.6634973]
[1768936714706,2.99108207,127.27,127.24,4.45888579]
[1768936716233,2.99108207,127.27,127.25,2.6634973]
[1768936716428,2.99108207,127.27,127.24,2.6634973]
[1768936717648,2.99108207,127.27,127.23,20.0834973]
[1768936717814,2.99108207,127.26,127.23,20.0834973]
[1768936718018,2.93108208,127.26,127.23,20.0834973]
[1768936718933,2.93108208,127.26,127.23,2.8634973]
[1768936719635,2.93108208,127.26,127.23,4.72103659]
[1768936719934,2.93108208,127.26,127.23,2.8634973]
[1768936720521,2.93108208,127.26,127.23,0.2]
[1768936720717,2.99108207,127.25,127.23,0.2]
[1768936722218,3.46328207,127.25,127.23,0.2]
[1768936722621,2.99108207,127.24,127.21,17.42]
[1768936722826,2.99108207,127.23,127.21,0.2]
[1768936724525,2.99108207,127.23,127.21,2.8634973]
[1768936726149,2.99108207,127.23,127.2,2.6634973]
[1768936726353,2.87565162,127.22,127.19,2.6634973]
[1768936726547,2.82952732,127.22,127.19,2.6634973]
[1768936726733,2.82952732,127.22,127.18,2.8634973]
[1768936726734,2.6634973,127.22,127.18,2.8634973]
[1768936727256,2.6634973,127.22,127.18,0.2]
[1768936727442,2.6634973,127.22,127.18,2.8634973]
[1768936728652,2.93565161,127.21,127.18,2.8634973]
[1768936728851,2.93565161,127.21,127.18,0.2]
[1768936729033,2.93565161,127.19,127.18,0.2]
[1768936731356,2.93565161,127.2,127.18,0.2]
[1768936732938,2.93565161,127.2,127.18,2.87324734]
[1768936733149,2.93565161,127.22,127.19,2.67324734]
[1768936734452,2.67324734,127.22,127.18,5.24237005]
[1768936734751,2.93565161,127.21,127.18,0.2]
[1768936734954,2.93565161,127.21,127.16,2.36958262]
[1768936734955,2.93565161,127.19,127.16,2.67324734]
[1768936735139,2.93565161,127.19,127.15,5.04282996]
[1768936735140,2.8856449,127.19,127.15,5.04282996]
[1768936736464,2.8856449,127.19,127.16,5.29374069]
[1768936737039,19.6489266,127.24,127.17,5.29418493]
[1768936737251,2.93565161,127.21,127.18,2.67324734]
[1768936737458,2.93565161,127.21,127.17,5.29418493]
[1768936737657,2.93565161,127.2,127.17,5.29418493]
[1768936739264,2.93565161,127.22,127.18,5.29505815]
[1768936739468,2.93565161,127.22,127.19,2.67324734]
[1768936740249,2.93565161,127.21,127.18,2.67324734]
[1768936741863,2.93565161,127.2,127.17,2.67324734]
[1768936742947,2.93565161,127.21,127.18,2.67324734]
[1768936744052,3.40785161,127.21,127.17,2.67324734]
[1768936744258,2.93565161,127.2,127.16,5.29642834]
[1768936744461,2.93565161,127.2,127.17,2.67324734]
[1768936745766,2.93565161,127.2,127.17,5.29668859]
[1768936747352,2.93565161,127.2,127.16,2.67324734]
[1768936748071,2.93565161,127.19,127.16,2.67324734]
[1768936748378,2.93565161,127.17,127.13,5.29745152]
[1768936748670,2.93565161,127.16,127.12,5.49745152]
[1768936749070,2.93565161,127.16,127.12,13.36402174]
[1768936749264,2.93565161,127.16,127.14,2.67324734]
[1768936750466,2.93565161,127.18,127.14,5.29794564]
[1768936750670,2.93565161,127.18,127.15,2.67324734]
[1768936751175,2.93565161,127.18,127.14,5.29794564]
[1768936751988,2.93565161,127.17,127.14,2.67324734]
[1768936754995,2.88564572,127.16,127.13,2.67324734]
[1768936757986,2.88564572,127.16,127.14,2.67324734]
[1768936758494,3.12214039,127.18,127.15,5.35003911]
[1768936758795,3.12214039,127.18,127.15,2.67324734]
[1768936761791,3.0621404,127.18,127.15,2.67324734]
[1768936762180,3.0621404,127.18,127.16,2.67324734]
[1768936762697,3.0621404,127.18,127.15,2.67324734]
[1768936762881,2.67324734,127.18,127.14,2.67324734]
[1768936763991,3.12214039,127.17,127.13,2.7376145]
[1768936764193,3.12214039,127.17,127.14,2.67324734]
[1768936765081,3.59434039,127.17,127.14,2.67324734]
[1768936765782,0.4722,127.17,127.16,2.67324734]
[1768936766098,3.12214039,127.18,127.16,2.67324734]
[1768936767998,3.12214039,127.2,127.17,2.67324734]
[1768936768308,3.12214039,127.21,127.18,2.67324734]
[1768936768601,3.12214039,127.21,127.19,2.67324734]
[1768936768975,3.12214039,127.21,127.18,2.67324734]
[1768936772703,3.12214039,127.21,127.19,2.67324734]
[1768936773207,3.12214039,127.21,127.17,2.73949851]
[1768936773407,3.12214039,127.2,127.17,2.67324734]
[1768936773807,3.12214039,127.2,127.17,5.41292359]
[1768936773989,3.12214039,127.21,127.18,5.41309929]
[1768936774187,3.12214039,127.21,127.19,2.67324734]
[1768936774604,3.12214039,127.21,127.18,5.41309929]
[1768936774998,3.12214039,127.21,127.18,2.67324734]
[1768936776318,3.12214039,127.21,127.19,2.67324734]
[1768936777018,10.98324576,127.21,127.18,2.67324734]
[1768936777219,3.12214039,127.2,127.15,2.74036704]
[1768936777406,3.12214039,127.2,127.17,2.67324734]
[1768936778001,3.12214039,127.2,127.16,5.41361438]
[1768936779222,3.12214039,127.2,127.17,2.67324734]
[1768936779416,10.53435271,127.21,127.18,5.41394798]
[1768936779417,10.98324576,127.21,127.18,5.41394798]
[1768936779616,3.12214039,127.21,127.19,2.67324734]
[1768936780017,3.12214039,127.22,127.19,2.67324734]
[1768936782406,3.12214039,127.21,127.19,2.67324734]
[1768936782610,3.12214039,127.21,127.18,2.74070064]
[1768936782611,3.12214039,127.21,127.18,5.41394798]
[1768936786119,3.12214039,127.21,127.19,2.67324734]
[1768936787524,3.06149571,127.23,127.2,5.41550514]
[1768936787834,3.06149571,127.24,127.22,2.67324734]
[1768936788427,3.06149571,127.24,127.21,2.67324734]
[1768936791240,3.06149571,127.23,127.2,2.67324734]
[1768936794843,3.06149571,127.23,127.19,2.67324734]
[1768936795013,3.06149571,127.22,127.2,2.67220576]
[1768936795936,3.06149571,127.21,127.18,2.67220576]